{"text_format":"3","workbook":"xlsx","n_sheets":2,"sheets":["Έναρξη","Κερδοφορία πελατών"],"not_rendered":{"charts":1},"read":"whole","date_system":"1900"}

{"sheet":"Έναρξη","index":0,"n_rows":7,"n_cols":2,"rows_kept":7}
[null,"ΠΛΗΡΟΦΟΡΙΕΣ ΓΙΑ ΑΥΤΟ ΤΟ ΠΡΟΤΥΠΟ"]
[null,"Χρησιμοποιήστε αυτή την ανάλυση κερδοφορίας πελατών για να παρακολουθείτε τη δραστηριότητα πελατών, τα έξοδα πωλήσεων και άλλα έξοδα."]
[null,"Συμπληρώστε τις πληροφορίες, όπως την επωνυμία της εταιρείας και την ημερομηνία, καθώς και λεπτομέρειες στους πίνακες."]
[null,"Οι τιμές στα κελιά που περιέχουν τύπους και ο πίνακας συνοπτικών δεικτών υπολογίζονται αυτόματα και το γράφημα ενημερώνεται."]
[null,"Σημείωση:  "]
[null,"Στη στήλη A του φύλλου εργασίας \"ΚΕΡΔΟΦΟΡΙΑ ΠΕΛΑΤΩΝ\" παρέχονται πρόσθετες οδηγίες. Αυτό το κείμενο είναι κρυφό σκόπιμα. Για να καταργήσετε το κείμενο, επιλέξτε τη στήλη A και, στη συνέχεια, πατήστε το πλήκτρο DELETE. Για να εμφανίσετε το κείμενο, επιλέξτε τη στήλη A και, στη συνέχεια, αλλάξτε το χρώμα γραμματοσειράς."]
[null,"Για να μάθετε περισσότερα για τους πίνακες σε αυτό το φύλλο εργασίας, πατήστε το πλήκτρο SHIFT και, στη συνέχεια, F10 μέσα σε έναν πίνακα, επιλέξτε \"ΠΙΝΑΚΑΣ\" και, στη συνέχεια, επιλέξτε \"ΕΝΑΛΛΑΚΤΙΚΟ ΚΕΙΜΕΝΟ\"."]

{"sheet":"Κερδοφορία πελατών","index":1,"n_rows":37,"n_cols":6,"rows_kept":37,"merged":[[36,1,36,5]]}
["Δημιουργήστε μια ανάλυση κερδοφορίας πελατών σε αυτό το φύλλο εργασίας. Σε διάφορα κελιά σε αυτή τη στήλη βρίσκονται χρήσιμες οδηγίες για τον τρόπο χρήσης αυτού του φύλλου εργασίας. Πατήστε το κάτω βέλος για να ξεκινήσετε."]
["Εισαγάγετε την επωνυμία εταιρείας στο κελί στα δεξιά.","Επωνυμία εταιρείας"]
["Ο τίτλος αυτού του φύλλου εργασίας βρίσκεται στο κελί στα δεξιά.","Ανάλυση κερδοφορίας πελατών"]
["Εισαγάγετε την ημερομηνία στο κελί στα δεξιά.","Ημερομηνία"]
["Στο κελί στα δεξιά βρίσκεται συμβουλή.","Τα γκρι κελιά θα υπολογιστούν για εσάς. Δεν χρειάζεται να εισαγάγετε τίποτα σε αυτά."]
["Εισαγάγετε λεπτομέρειες στον πίνακα \"Δραστηριότητα πελατών\" που ξεκινάει στο κελί στα δεξιά. Η επόμενη οδηγία βρίσκεται στο κελί A12.","Δραστηριότητα πελατών:","Όνομα τομέα 1","Όνομα τομέα 2","Όνομα τομέα 3","Σύνολο"]
[null,"Αριθμός ενεργών πελατών – Αρχή περιόδου",5,8,8,{"$f":"SUM(C7:E7)","v":21}]
[null,"Αριθμός πελατών που προστέθηκαν",2,4,4,{"$f":"SUM(C8:E8)","v":10}]
[null,"Αριθμός πελατών που χάθηκαν/διέκοψαν",{"v":-1,"d":"-1 "},{"v":-2,"d":"-2 "},{"v":-2,"d":"-2 "},{"$f":"SUM(C9:E9)","v":{"v":-5,"d":"-5 "}}]
[null,"Αριθμός ενεργών πελατών – Τέλος περιόδου",{"$f":"SUBTOTAL(109,ΔραστηριότηταΠελατών[Όνομα τομέα 1])","v":6},{"$f":"SUBTOTAL(109,ΔραστηριότηταΠελατών[Όνομα τομέα 2])","v":10},{"$f":"SUBTOTAL(109,ΔραστηριότηταΠελατών[Όνομα τομέα 3])","v":10},{"$f":"SUBTOTAL(109,ΔραστηριότηταΠελατών[Σύνολο])","v":26}]
[]
["Εισαγάγετε λεπτομέρειες στον πίνακα ανάλυση κερδοφορίας που ξεκινάει στο κελί στα δεξιά. Η επόμενη οδηγία βρίσκεται στο κελί A16.","Ανάλυση κερδοφορίας:","Όνομα τομέα 1","Όνομα τομέα 2","Όνομα τομέα 3","Σύνολο"]
[null,"Έσοδα ανά τομέα",{"v":1500000,"d":"1,500,000.00 €"},{"v":1800000,"d":"1,800,000.00 €"},{"v":2500000,"d":"2,500,000.00 €"},{"$f":"SUM(ΑνάλυσηΚερδοφορίας[[#This Row],[Όνομα τομέα 1]:[Όνομα τομέα 3]])","v":{"v":5800000,"d":"5,800,000.00 €"}}]
[null,"Συντελεστής στάθμισης",{"$f":"+C13/$F$13","v":{"v":0.25862068965517243,"d":"26%"}},{"$f":"+D13/$F$13","v":{"v":0.3103448275862069,"d":"31%"}},{"$f":"+E13/$F$13","v":{"v":0.43103448275862066,"d":"43%"}},{"$f":"SUM(ΑνάλυσηΚερδοφορίας[[#This Row],[Όνομα τομέα 1]:[Όνομα τομέα 3]])","v":{"v":1,"d":"100%"}}]
[]
["Εισαγάγετε λεπτομέρειες στον πίνακα εξοδα πωλήσεων που ξεκινάει στο κελί στα δεξιά. Η επόμενη οδηγία βρίσκεται στο κελί A23.","Έξοδα πωλήσεων:","Όνομα τομέα 1","Όνομα τομέα 2","Όνομα τομέα 3","Σύνολο"]
[null,"Έξοδα συνεχούς εξυπηρέτησης και υποστήριξης",{"v":1000000,"d":"1,000,000.00 €"},{"v":1400000,"d":"1,400,000.00 €"},{"v":1400000,"d":"1,400,000.00 €"},{"$f":"SUM(C17:E17)","v":{"v":3800000,"d":"3,800,000.00 €"}}]
[null,"Άλλα άμεσα έξοδα πελατών",{"v":200000,"d":"200,000.00 €"},{"v":100000,"d":"100,000.00 €"},{"v":100000,"d":"100,000.00 €"},{"$f":"SUM(C18:E18)","v":{"v":400000,"d":"400,000.00 €"}}]
[null,"Σύνολο εξόδων πωλήσεων",{"$f":"SUM(C17:C18)","v":{"v":1200000,"d":"1,200,000.00 €"}},{"$f":"SUM(D17:D18)","v":{"v":1500000,"d":"1,500,000.00 €"}},{"$f":"SUM(E17:E18)","v":{"v":1500000,"d":"1,500,000.00 €"}},{"$f":"SUM(F17:F18)","v":{"v":4200000,"d":"4,200,000.00 €"}}]
[null,"Περιθώριο μικτού κέρδους",{"$f":"+C13-C19","v":{"v":300000,"d":"300,000.00 €"}},{"$f":"+D13-D19","v":{"v":300000,"d":"300,000.00 €"}},{"$f":"+E13-E19","v":{"v":1000000,"d":"1,000,000.00 €"}},{"$f":"+F13-F19","v":{"v":1600000,"d":"1,600,000.00 €"}}]
[null,"Συντελεστής στάθμισης",{"$f":"MAX(0, MIN(1,C20/$F$20))","v":{"v":0.1875,"d":"19%"}},{"$f":"MAX(0, MIN(1,D20/$F$20))","v":{"v":0.1875,"d":"19%"}},{"$f":"MAX(0, MIN(1,E20/$F$20))","v":{"v":0.625,"d":"63%"}},{"$f":"SUM(C21:E21)","v":{"v":1,"d":"100%"}}]
[]
["Εισαγάγετε λεπτομέρειες στον πίνακα άλλα έξοδα που ξεκινάει στο κελί στα δεξιά. Η επόμενη οδηγία βρίσκεται στο κελί A31.","Άλλα έξοδα:","Όνομα τομέα 1","Όνομα τομέα 2","Όνομα τομέα 3","Σύνολο"]
[null,"Απόκτηση πελατών",{"v":105000,"d":"105,000.00 €"},{"v":120000,"d":"120,000.00 €"},{"v":235000,"d":"235,000.00 €"},{"$f":"SUM(ΆλλαΈξοδα[[#This Row],[Όνομα τομέα 1]:[Όνομα τομέα 3]])","v":{"v":460000,"d":"460,000.00 €"}}]
[null,"Μάρκετινγκ πελατών",{"v":150000,"d":"150,000.00 €"},{"v":125000,"d":"125,000.00 €"},{"v":275000,"d":"275,000.00 €"},{"$f":"SUM(C25:E25)","v":{"v":550000,"d":"550,000.00 €"}}]
[null,"Διακοπή πελατών",{"v":80000,"d":"80,000.00 €"},{"v":190000,"d":"190,000.00 €"},{"v":140000,"d":"140,000.00 €"},{"$f":"SUM(C26:E26)","v":{"v":410000,"d":"410,000.00 €"}}]
[null,"Σύνολο άλλων εξόδων πελατών",{"$f":"SUM(C24:C26)","v":{"v":335000,"d":"335,000.00 €"}},{"$f":"SUM(D24:D26)","v":{"v":435000,"d":"435,000.00 €"}},{"$f":"SUM(E24:E26)","v":{"v":650000,"d":"650,000.00 €"}},{"$f":"SUM(F24:F26)","v":{"v":1420000,"d":"1,420,000.00 €"}}]
[null,"Κέρδη πελατών κατά τομέα",{"$f":"+C20-C27","v":{"v":-35000,"d":"-35,000.00 €"}},{"$f":"+D20-D27","v":{"v":-135000,"d":"-135,000.00 €"}},{"$f":"+E20-E27","v":{"v":350000,"d":"350,000.00 €"}},{"$f":"SUM(C28:E28)","v":{"v":180000,"d":"180,000.00 €"}}]
[null,"Συντελεστής στάθμισης",{"$f":"MAX(0,MIN(1, C28/$F$28))","v":{"v":0,"d":"0%"}},{"$f":"MAX(0,MIN(1, D28/$F$28))","v":{"v":0,"d":"0%"}},{"$f":"MAX(0,MIN(1, E28/$F$28))","v":{"v":1,"d":"100%"}},{"$f":"SUM(C29:E29)","v":{"v":1,"d":"100%"}}]
[]
["Ο πίνακας συνοπτικών δεικτών που ξεκινάει στο κελί στα δεξιά ενημερώνεται αυτόματα. Η επόμενη οδηγία βρίσκεται στο κελί A37.","Συνοπτικοί δείκτες:","Όνομα τομέα 1","Όνομα τομέα 2","Όνομα τομέα 3","Τάση"]
[null,"Μέσο κόστος ανά πελάτη που αποκτήθηκε",{"$f":"+C24/C8","v":{"v":52500,"d":"52,500.00 €"}},{"$f":"+D24/D8","v":{"v":30000,"d":"30,000.00 €"}},{"$f":"+E24/E8","v":{"v":58750,"d":"58,750.00 €"}}]
[null,"Μέσο κόστος ανά πελάτη που διέκοψε",{"$f":"-C26/C9","v":{"v":80000,"d":"80,000.00 €"}},{"$f":"-D26/D9","v":{"v":95000,"d":"95,000.00 €"}},{"$f":"-E26/E9","v":{"v":70000,"d":"70,000.00 €"}}]
[null,"Μέσος κόστος μάρκετινγκ ανά ενεργό πελάτη",{"$f":"+C26/ΔραστηριότηταΠελατών[[#Totals],[Όνομα τομέα 1]]","v":{"v":13333.333333333334,"d":"13,333.33 €"}},{"$f":"+D25/ΔραστηριότηταΠελατών[[#Totals],[Όνομα τομέα 2]]","v":{"v":12500,"d":"12,500.00 €"}},{"$f":"+E25/ΔραστηριότηταΠελατών[[#Totals],[Όνομα τομέα 3]]","v":{"v":27500,"d":"27,500.00 €"}}]
[null,"Μέσος κέρδος (ζημία) ανά πελάτη",{"$f":"+C29/ΔραστηριότηταΠελατών[[#Totals],[Όνομα τομέα 1]]","v":{"v":0,"d":"0.00 €"}},{"$f":"+D28/ΔραστηριότηταΠελατών[[#Totals],[Όνομα τομέα 2]]","v":{"v":-13500,"d":"-13,500.00 €"}},{"$f":"+E28/ΔραστηριότηταΠελατών[[#Totals],[Όνομα τομέα 3]]","v":{"v":35000,"d":"35,000.00 €"}}]
[]
["Στο κελί στα δεξιά βρίσκεται γράφημα ομαδοποιημένων στηλών που εμφανίζει τους συνοπτικοί δείκτες ανά τομέα πελατών.","Σε αυτό το κελί βρίσκεται γράφημα ομαδοποιημένων στηλών που εμφανίζει τους συνοπτικοί δείκτες ανά τομέα πελατών."]